Cogmind - Beta 13 @@@ ROGUE MODE // 2024.08.06 @ 16:23:46 Player: yam Result: Destroyed by D-53 Grenadier with Mini Grenade Launcher Performance ------------- Evolutions (0) 0 Regions Visited (2) 400 Robots Destroyed (11) 55 Value Destroyed (92) 92 Prototype IDs (0) 0 Alien Tech Used (0) 0 Bonus (0) 0 TOTAL SCORE: 547 Bonus ------- None Cogmind --------- Core Integrity 0/250 Matter 297/300 Energy 99/100 System Corruption 0% Temperature Cool (0) Movement Core (100) Ox1 Location -10/Mines Parts ------- > --- POWER (1) -------- (None) > --- PROPULSION (2) --- (None) > --- UTILITY (2) ------ Small Storage Unit Signal Interpreter > --- WEAPON (2) ------- (None) > --- INVENTORY (8) ---- Ion Engine Wheel Sensor Array Signal Interpreter Improved Terrain Scanner Datajack Datajack Peak State ------------ > --- POWER ------------ Light Ion Engine > --- PROPULSION ------- Wheel Wheel > --- UTILITY ---------- Small Storage Unit Improved Terrain Scanner > --- WEAPON ----------- EM Pulse Gun Light Assault Rifle > --- INVENTORY -------- Mining Laser [Rating: 9] Favorites ----------- Power Light Ion Engine Engine Light Ion Engine Propulsion Wheel Wheel Wheel Utility Small Storage Unit Device Improved Terrain Scanner Storage Small Storage Unit Processor Signal Interpreter Weapon EM Pulse Gun Energy Gun EM Pulse Gun Ballistic Gun Light Assault Rifle Special Weapon Mining Laser Special Melee Weapon Datajack Build | -11 -10 -10 ------- Run | Yrd Mat Min Slots Evolved . | . . . Power . | . . . Propulsion . | . . . Utility . | . . . Weapon . | . . . Parts Attached 14 | 8 4 2 Power 1 | 1 . . Engine 1 | 1 . . Core . | . . . Reactor . | . . . Propulsion 3 | 2 1 . Treads . | . . . Leg . | . . . Wheel 3 | 2 1 . Hover . | . . . Flight . | . . . Utility 4 | 3 1 . Device 2 | 2 . . Storage 1 | 1 . . Processor 1 | . 1 . Hackware . | . . . Protection . | . . . Artifact . | . . . Weapon 6 | 2 2 2 Energy Gun 2 | 1 1 . Energy Cannon . | . . . Ballistic Gun 2 | 1 . 1 Ballistic Cannon . | . . . Launcher . | . . . Special Weapon 1 | . . 1 Impact Weapon . | . . . Slashing Weapon . | . . . Piercing Weapon . | . . . Special Melee Weapon 1 | . 1 . Unidentified Prototypes . | . . . Parts Lost 6 | . . 6 Power 1 | . . 1 Propulsion 2 | . . 2 Utility . | . . . Weapon 3 | . . 3 Highest Loss Streak 6 | . . 6 To Critical Strikes . | . . . Average Slot Usage (%) 92 | . 95 87 Engine 12 | . 14 9 Wheel 25 | . 25 25 Storage 14 | . 14 14 Processor 13 | . 13 14 Energy Gun 10 | . 12 8 Ballistic Gun 2 | . 3 2 Special Melee Weapon 11 | . 10 12 Naked Turns . | . . . Heaviest Build 12 | 12 12 11 Greatest Support 20 | 20 20 20 Greatest Overweight (x) 2 | 2 . 2 Average Overweight (x) . | . . . Largest Inventory Capacity 8 | 8 8 8 Average Capacity 7 | 7 8 8 Most Carried 8 | 2 8 8 Average Carried 5 | . 7 7 Final Capacity 8 | 8 8 8 Final Carried 8 | 2 8 7 Class Distribution -------------------- 100% | Mutant Dominant Class ---------------- Mutant | -10/Materials Mutant | -10/Mines Resources | -11 -10 -10 ----------- Run | Yrd Mat Min Matter Collected 320 | 280 30 10 Remotely . | . . . Salvage Created 243 | 152 30 61 Parts 25 | 13 3 9 Haulers Intercepted . | . . . Recyclers Shooed 1 | 1 . . Parts Field Recycled . | . . . Retrieved Matter . | . . . Parts Self-Destructed . | . . . Prevented . | . . . Kills | -11 -10 -10 ------- Run | Yrd Mat Min Combat Hostiles Destroyed 3 | . . 3 Guns 3 | . . 3 Classes Destroyed 5 | 2 1 2 Builder 1 | . . 1 Tunneler 5 | 5 . . Recycler 1 | 1 . . Watcher 1 | . 1 . Swarmer 3 | . . 3 Best Kill Streak 5 | 5 1 4 Combat Bots Only 3 | . . 3 Max Kills in Single Turn 1 | 1 1 1 Gunslinging . | . . . Exploded . | . . . Melee . | . . . Uniques/NPCs Destroyed . | . . . Combat | -11 -10 -10 -------- Run | Yrd Mat Min Hostile Shots Fired 42 | . . 42 Missed 15 | . . 15 Damage Taken 616 | 12 . 604 Core 259 | . . 259 Absorbed by Shields . | . . . Regen/Repaired (Parts) 15 | . 15 . Core Remaining (%) 100 | 100 . . Volleys Fired 41 | 21 3 17 Largest 1 | 1 1 1 Hottest 40 | 40 40 40 Shots Fired 41 | 21 3 17 Gun 41 | 21 3 17 Cannon . | . . . Launcher . | . . . Special . | . . . Kinetic 3 | . . 3 Thermal . | . . . Explosive . | . . . Electromagnetic 38 | 21 3 14 Robot Hit Streak 8 | 8 1 2 Robot Miss Streak 3 | 2 1 3 Penetration Max . | . . . Secondary Targets . | . . . Shots Hit Robots 23 | 15 1 7 Core Hits 12 | 6 1 5 Critical Kills . | . . . Critical Parts Destroyed . | . . . Critical Strikes . | . . . Melee Attacks . | . . . Impact . | . . . Slashing . | . . . Piercing . | . . . Sneak Attacks . | . . . Combat Hostiles . | . . . Follow-up Attacks . | . . . Damage Inflicted 383 | 232 22 129 Guns 310 | 198 22 90 Cannons . | . . . Explosions 73 | 34 . 39 Melee . | . . . Ramming . | . . . Kinetic 9 | . . 9 Thermal 73 | 34 . 39 Explosive . | . . . Electromagnetic 301 | 198 22 81 Impact . | . . . Slashing . | . . . Piercing . | . . . Highest Corruption . | . . . Average Corruption . | . . . Corruption Purged . | . . . Corruption Blocked . | . . . Overload Shots . | . . . Overflow Damage 19 | . . 19 Projectiles . | . . . Explosions 19 | . . 19 Melee . | . . . Knockbacks . | . . . Impact . | . . . Kinetic . | . . . Secondary . | . . . Self-Inflicted Damage 12 | 12 . . Shots 1 | 1 . . Rammed . | . . . Targets Rammed . | . . . Kicked . | . . . Crushed . | . . . Highest Temperature 12 | 12 . . Average Temperature 12 | 12 . . Received Heat Transfer 47 | . . 47 Siege Activations . | . . . Robots Corrupted . | . . . Combat Hostiles . | . . . Parts Fried 3 | 2 1 . Impact Corruptions . | . . . Robots Melted . | . . . Combat Hostiles . | . . . Parts Melted . | . . . Heat Transferred 50 | . . 50 Parts Sabotaged . | . . . Parts Stolen . | . . . Parts Stripped . | . . . Power Chain Reactions 2 | 1 . 1 Alert | -11 -10 -10 ------- Run | Yrd Mat Min Peak Influence 148 | 30 72 148 Initial 27 | . 19 27 Average 55 | 17 43 114 Maximum Alert Level . | . . . Low Security (%) 100 | 100 100 100 Level 1 . | . . . Level 2 . | . . . Level 3 . | . . . Level 4 . | . . . Level 5 . | . . . High Security . | . . . Max Security . | . . . Squads Dispatched 1 | . 1 . Investigation . | . . . Extermination . | . . . Reinforcement 1 | . 1 . Assault . | . . . Garrison . | . . . Intercept . | . . . Searches Triggered . | . . . Construction Impeded . | . . . Haulers Reinforced . | . . . Active Scanning Responses . | . . . Cargo Convoy Interrupts . | . . . Stealth | -11 -10 -10 --------- Run | Yrd Mat Min Distress Signals . | . . . Communications Jammed . | . . . Distress Signals . | . . . Times Spotted 28 | . 2 26 Peak Tracking Total 15 | . 1 15 Tactical Retreats 4 | . . 4 Traps | -11 -10 -10 ------- Run | Yrd Mat Min Traps Triggered . | . . . Indirectly . | . . . Trap Hack Attempts . | . . . Triggered . | . . . Disarmed . | . . . Reprogrammed . | . . . Reused . | . . . Traps Extracted . | . . . Installed . | . . . Triggered . | . . . Machines | -11 -10 -10 ---------- Run | Yrd Mat Min Machines Disabled . | . . . Max in Single Turn . | . . . Machines Repaired . | . . . Machines Dismantled . | . . . Machines Sabotaged . | . . . Overloaded Fab Kills . | . . . Hacking | -11 -10 -10 --------- Run | Yrd Mat Min Machines Accessed 2 | . 2 . Terminals 1 | . 1 . Fabricators . | . . . Repair Stations 1 | . 1 . Recycling Units . | . . . Scanalyzers . | . . . Garrison Access . | . . . Total Hacks 8 | . 8 . Successful 6 | . 6 . Failed 2 | . 2 . Catastrophic . | . . . Database Lockouts . | . . . Manual 3 | . 3 . Terminals 3 | . 3 . Fabricators . | . . . Repair Stations 5 | . 5 . Recycling Units . | . . . Scanalyzers . | . . . Garrison Access . | . . . Terminal Hacks 2 | . 2 . Branch Access Points 1 | . 1 . Zone Layout 1 | . 1 . Fabricator Hacks . | . . . Repair Station Hacks 4 | . 4 . Scan Component 2 | . 2 . Repair 2 | . 2 . Recycling Unit Hacks . | . . . Scanalyzer . | . . . Garrison Access Hacks . | . . . Unauthorized Hacks . | . . . Terminals . | . . . Fabricators . | . . . Repair Stations . | . . . Recycling Units . | . . . Scanalyzers . | . . . Garrison Access . | . . . Data Cores Recovered . | . . . Used . | . . . Hacking Detections 2 | . 2 . Full Trace Events . | . . . Feedback Events . | . . . Feedback Blocked . | . . . Robot Schematics Acquired . | . . . Robots Built . | . . . Authchips . | . . . Time . | . . . Total Robot Build Rating . | . . . Part Schematics Acquired . | . . . Parts Built . | . . . Authchips . | . . . Time . | . . . Total Part Build Rating . | . . . Parts Repaired 2 | . 2 . Time 52 | . 52 . Parts Recycled . | . . . Recycled Matter . | . . . Retrieved Matter . | . . . Retrieved Components . | . . . Parts Scanalyzed . | . . . Part Schematics Acquired . | . . . Parts Damaged . | . . . Bothacking | -11 -10 -10 ------------ Run | Yrd Mat Min Used RIF Installer . | . . . Robots Hacked . | . . . Non-combat . | . . . Combat . | . . . Robot Hacks Applied . | . . . Relay Couplers Released . | . . . Fabnet Peak Effective % . | . . . Robots Rewired . | . . . Allies Hacked . | . . . Hacks Repelled . | . . . Allies | -11 -10 -10 -------- Run | Yrd Mat Min Total Allies . | . . . Largest Group . | . . . Highest-Rated Group . | . . . Highest-Rated Ally . | . . . Total Orders . | . . . Ally Attacks . | . . . Total Damage . | . . . Kills . | . . . Allies Corrupted . | . . . Allies Melted . | . . . Intel | -11 -10 -10 ------- Run | Yrd Mat Min Robot Analysis Total . | . . . Derelict Logs Recovered . | . . . Drone Launches . | . . . Drone Recoveries . | . . . Exploration | -11 -10 -10 ------------- Run | Yrd Mat Min Turns Passed 423 | 123 181 119 Spaces Moved 306 | 72 132 102 Core 16 | 10 . 6 Treads . | . . . Legs . | . . . Wheels 290 | 62 132 96 Hover . | . . . Flight . | . . . Fastest Speed 50 | 50 80 80 Average Speed 82 | 88 80 81 Slowest Speed 150 | 150 80 150 Overloaded Moves . | . . . Propulsion Burnouts . | . . . Robots Hopped . | . . . Cave-ins Triggered . | . . . Exploration Rate (%) 23 | 3 31 35 Regions Visited 2 Branch Regions 1 Pre-discovered Areas . | . . . Known Exits Taken 1 | . 1 . Unknown Exits Taken 1 | 1 . . Scrap Searched . | . . . Spaces Dug . | . . . Terrain Destroyed 6 | . . 6 Melee . | . . . Projectile . | . . . AOE 6 | . . 6 Terrain Rammed . | . . . Walls Destroyed . | . . . Machines Disabled . | . . . Actions | -11 -10 -10 --------- Run | Yrd Mat Min Total 432 | 107 204 121 Wait 57 | 1 56 . Move 304 | 71 131 102 Hop . | . . . Pick Up 9 | 3 6 . Fast Attach 12 | 8 4 . Attach 1 | . . 1 Detach 3 | 1 2 . Swap 1 | . . 1 Drop 4 | 2 2 . Fire 41 | 21 3 17 Melee . | . . . Ram . | . . . Kick . | . . . Crush . | . . . Escape Stasis . | . . . Rewire . | . . . Trap . | . . . Miscellaneous . | . . . Route ------- -11/Scrapyard -10/Materials -10/Mines (discovered 1 exit: *Mat) History --------- Turn | Location | Event 35 | -11/Scrapyard | Discovered new exit (range 16) 124 | -11/Scrapyard | Entered Materials 145 | -10/Materials | Identified exit to Mines 218 | -10/Materials | Repaired EM Pulse Gun 245 | -10/Materials | Repaired Wheel 305 | -10/Materials | Entered Mines 307 | -10/Mines | Build established: Mutant 328 | -10/Mines | Assembled infested the area 333 | -10/Mines | Assisted by a Guerilla fighting off Assembled 359 | -10/Mines | Discovered new exit (range 9) 364 | -10/Mines | Identified exit to Materials 417 | -10/Mines | Core integrity fell below 50% 422 | -10/Mines | Core integrity fell below 20% 424 | -10/Mines | Destroyed by D-53 Grenadier with Mini Grenade Launcher Last Messages --------------- as-51609 destroyed. as-14056 sneak attacks. as-33047 destroyed. as-29168 destroyed. as-30325 destroyed. as-70331 destroyed. as-86404 destroyed. as-14056 destroyed. R-06 Scavenger destroyed. EXIT=FOUND EXIT=IDENTIFIED: MATERIALS EM Pulse Gun destroyed. Lgt. Ion Engine destroyed. Wheel destroyed. D-53 Grenadier IFF system glitched. G-34 Mercenary destroyed. Mining Laser destroyed. The unstable cave ceiling collapses. Lgt. Assault Rifle destroyed. G-47 Trooper destroyed. Map ----- +----------------------------------------------------+ | ????????????????????????????????????????? | | ????????????????????????????????????????? | | ????????????????????????????????????????? | | ????????????????????????????????????????? | | ????????????????????????????????????????? | | ????????????????????????????????????????? | | ????????????????????????????????????????? | | ????????????????????????????????????????? | | ????????????????????????????????????????? | | ?????????????##?????????????????????????? | | ????????????# ##???????#????????????????? | | ???????????# #??????# ????????????????? | | ?????###### #??????#k#???????????????? | | ?????? #???????# #???????????????? | | ?????? #???????# #???????????????? | | ??????? ##??????# #???????????????? | | ?????### #?????## #???????????????? | | ???### #????## ???????????????? | | ??## #?????# ???????????????? | | ??# #???#### ##?????????????? | | ### #???## ## #########?????? | | ###### t [ ##????? | | ## Y = %[ ##???? | | ?##### # # ### d #???? | | ?????#### ## #?# ## d #???? | | ????????#### #?####### @ #?? | | ???????????# #???????## #?? | | ???????????# #????????# # #?? | | ???????????# #????????## # #?? | | ???????????# ?????????### # #???? | | #?????????? ???????????###### ##???? | | #???????? ?????????????????#####????? | | #???????# ??????????????????????????? | | #????????# ??????????????????????????? | | ##????????? ??????????????????????????? | | ###?????????? ??????????????????????????? | | ????????????? ??????????????????????????? | | ?????????????#??????????????????????????? | | ????????????????????????????????????????? | | ????????????????????????????????????????? | | ????????????????????????????????????????? | | ????????????????????????????????????????? | | ????????????????????????????????????????? | | ????????????????????????????????????????? | | ????????????????????????????????????????? | | ????????????????????????????????????????? | | ????????????????????????????????????????? | | ????????????????????????????????????????? | | ????????????????????????????????????????? | | ????????????????????????????????????????? | +----------------------------------------------------+ Best States ------------- Heat Dissipation 25 Energy Generation 10 Energy Capacity 125 Matter Stores 300 Matter Capacity 300 Sight Range 16 Terrain Scan Range 16 Terrain Scan Density 10 Evasion (%) 44 Item Schematics ----------------- None Robot Schematics ------------------ None Fabricated ------------ Nothing Alien Tech Used ----------------- None Achievements -------------- None Challenges ------------ None Game ------ Seed CoolantPointyInitializer Manual? 0 Play Time 00:14:44 Cumulative 16.2 hours Start 2024.08.06 @ 15:01:13 End 2024.08.06 @ 16:23:46 Sessions 1 Manual Loads 0 Difficulty Rogue Special Mode None Game No. 13 Rogue 13 Adventurer 0 Explorer 0 Win Type - Total 0 Types 0/0/0/0/0/0/0/0/0 Lore% 22 Gallery% 19 Achievement% 21 Wizard Run 0 Options --------- Layout 1 ASCII 0 Keyboard 1 Movement Numpad Keybinds 1 Fullscreen 1 Font 24/Smallcaps Map View 50x35 Zoom Use 0% Tactical HUD 0 Map Filters NONE Filters NONE Steam 0 RUN: d0655272-a7fa-4bab-af79-4b6252bee01d